bitfinex-derivatives/quotes_SOLF0:USTF0_20250409
["timestamp","ask_amount","ask_price","bid_price","bid_amount"]
[1744235970167,4.53555546,119.47,119.43,0.06189317]
[1744235970877,26.29574374,119.46,119.38,36.78]
[1744235971076,36.78,119.45,119.38,36.78]
[1744235971282,26.29574374,119.44,119.38,36.78]
[1744235971473,8.3774,119.41,119.38,36.78]
[1744235971778,26.29574374,119.44,119.38,36.78]
[1744235972078,0.05501719,119.42,119.4,0.06448706]
[1744235972377,0.05501719,119.42,119.35,98.78]
[1744235972575,8.3772,119.41,119.35,98.78]
[1744235972779,2.1059,119.43,119.35,98.78]
[1744235973074,10.482,119.43,119.35,98.78]
[1744235973282,2.1059,119.43,119.35,98.78]
[1744235973578,0.06298163,119.4,119.38,0.05832151]
[1744235973881,0.06298163,119.4,119.39,36.8]
[1744235987190,4.4753,119.47,119.39,63.09574374]
[1744235987392,2.0944,119.51,119.41,26.29574374]
[1744235987697,4.3097,119.53,119.45,26.29574374]
[1744235987897,4.3097,119.53,119.46,36.76]
[1744235988393,0.05810405,119.51,119.48,0.05402962]
[1744235990388,0.05810405,119.51,119.49,62.0]
[1744235992294,0.05810405,119.51,119.5,36.74]
[1744235992893,2.0944,119.58,119.5,36.74]
[1744235993995,0.06126083,119.55,119.53,0.05554409]
[1744236000408,26.29574374,119.54,119.45,36.72]
[1744236000704,4.4733,119.53,119.45,36.72]
[1744236001095,355.5126,119.61,119.45,36.72]
[1744236001295,2.2844,119.6,119.45,36.72]
[1744236001494,0.06461235,119.54,119.53,26.29574374]
[1744236001695,2.1889,119.62,119.53,639.14]
[1744236001903,36.72,119.67,119.54,26.29574374]
[1744236002098,36.72,119.67,119.56,26.29574374]
[1744236002303,26.29574374,119.68,119.57,36.72]
[1744236002700,15.0661,119.69,119.59,26.29574374]
[1744236002901,3.508e-05,119.64,119.61,0.06377386]
[1744236003112,6.6958,119.73,119.62,63.01574374]
[1744236003309,618.1788353,119.8,119.62,36.72]
[1744236003509,618.1788353,119.8,119.66,26.29574374]
[1744236003510,6.6934,119.78,119.66,26.29574374]
[1744236003710,6.6934,119.78,119.68,26.29574374]
[1744236004008,26.29574374,119.84,119.72,26.29574374]
[1744236004210,3.175e-05,119.74,119.73,36.72]
[1744236004409,3.175e-05,119.74,119.73,45.0744]
[1744236004611,26.29574374,119.84,119.73,36.72]
[1744236004807,26.29574374,119.84,119.72,26.29574374]
[1744236004808,26.29574374,119.8,119.69,638.96]
[1744236005009,26.29574374,119.76,119.66,36.72]
[1744236005216,26.29574374,119.74,119.66,36.72]
[1744236005414,8.4150254,119.72,119.7,0.0549984]
[1744236005616,8.4150254,119.72,119.63,38.16]
[1744236005617,26.35546914,119.72,119.63,38.16]
[1744236006007,8.3572,119.69,119.63,38.16]
[1744236006312,64.43574374,119.72,119.63,38.16]
[1744236006812,0.05383172,119.69,119.66,0.0559591]
[1744236007608,8.41113172,119.69,119.66,0.0559591]
[1744236007914,0.05383172,119.69,119.66,0.0559591]
[1744236009411,0.05383172,119.69,119.67,38.14]
[1744236010818,0.05383172,119.69,119.66,0.0559591]
[1744236011609,8.3586,119.67,119.66,0.0559591]
[1744236011806,2.31253172,119.69,119.66,0.0559591]
[1744236012013,0.05383172,119.69,119.66,0.0559591]
[1744236012215,8.3583,119.68,119.66,0.0559591]
[1744236012414,0.05383172,119.69,119.66,0.0559591]
[1744236012919,8.3586,119.67,119.66,0.0559591]
[1744236013118,38.19383172,119.69,119.62,38.14]
[1744236013411,26.29574374,119.64,119.59,38.14]
[1744236013714,8.3633,119.61,119.56,38.14]
[1744236013910,4.2727,119.63,119.56,38.14]
[1744236014113,26.29574374,119.62,119.54,1.45421115]
[1744236014313,26.29574374,119.6,119.52,38.14]
[1744236014509,26.29574374,119.58,119.5,93.34403306]
[1744236015014,8.3667,119.56,119.5,93.34403306]
[1744236015219,26.29574374,119.6,119.5,93.34403306]
[1744236015409,8.3663,119.56,119.5,93.34403306]
[1744236015610,0.05796787,119.57,119.54,0.05567801]
[1744236016205,64.43574374,119.56,119.46,639.98]
[1744236016510,8.3695,119.52,119.46,639.98]
[1744236016717,2.301,119.55,119.46,639.98]
[1744236016913,2.301,119.55,119.46,666.27574374]
[1744236017312,0.06017393,119.52,119.49,0.05854488]
[1744236017512,0.06017393,119.52,119.5,38.14]
[1744236017915,26.29574374,119.6,119.5,38.14]
[1744236018115,6.8754,119.61,119.5,64.43574374]
[1744236018316,4.5993,119.61,119.52,26.29574374]
[1744236018518,4.5993,119.61,119.54,26.29574374]
[1744236018720,2.2761,119.64,119.56,26.29574374]
[1744236018915,2.2761,119.64,119.55,38.14]
[1744236019117,2.2761,119.64,119.55,64.43574374]
[1744236019412,0.06283326,119.61,119.58,26.35168522]
[1744236019623,0.06283326,119.61,119.59,38.14]
[1744236020916,3.326e-05,119.61,119.6,62.0]
[1744236021720,3.326e-05,119.61,119.6,70.36]
[1744236022116,4.618,119.71,119.6,70.36]
[1744236022311,4.618,119.71,119.62,42.49170249]
[1744236022513,4.618,119.71,119.63,38.14]
[1744236023422,0.06224492,119.68,119.66,0.06389008]
[1744236023623,4.492e-05,119.68,119.67,38.14]
[1744236024121,4.492e-05,119.68,119.67,46.4986]
[1744236024820,4.492e-05,119.68,119.67,54.8586]
[1744236025024,8.3488,119.82,119.78,8.3507]
[1744236025222,6.6594,119.84,119.78,8.3507]
[1744236025420,49.15110249,119.84,119.77,100.14]
[1744236026017,8.3478,119.83,119.79,8.3498]
[1744236026218,0.06393479,119.82,119.79,8.40425107]
[1744236026524,0.06393479,119.82,119.79,0.05445107]
[1744236027526,8.3493,119.81,119.79,0.05445107]
[1744236027719,0.06393479,119.82,119.79,0.05445107]
[1744236028727,8.349,119.81,119.79,0.05445107]
[1744236028932,0.06393479,119.82,119.79,0.05445107]
[1744236029226,8.3492,119.81,119.79,0.05445107]
[1744236029434,0.06393479,119.82,119.79,0.05445107]
[1744236030125,0.06393479,119.82,119.67,376.52763221]
[1744236030126,80.61170249,119.81,119.71,38.12]
[1744236030321,38.12,119.81,119.71,38.12]
[1744236030628,80.61170249,119.81,119.71,38.12]
[1744236030921,42.49170249,119.79,119.71,38.12]
[1744236031123,42.55318708,119.77,119.67,613.12763221]
[1744236031320,8.354,119.74,119.68,38.1]
[1744236031524,4.3682,119.76,119.68,38.1]
[1744236031725,42.49170249,119.75,119.67,613.12763221]
[1744236031924,42.49170249,119.75,119.67,11.52763221]
[1744236032325,0.05552553,119.72,119.7,0.05946593]
[1744236032627,0.05552553,119.72,119.66,73.10401239]
[1744236032628,0.05552553,119.72,119.66,38.1]
[1744236032827,42.49170249,119.71,119.64,11.52763221]
[1744236033028,8.3573,119.69,119.64,11.52763221]
[1744236033327,42.49170249,119.71,119.64,11.52763221]
[1744236033532,8.3573,119.69,119.64,11.52763221]
[1744236033725,42.49170249,119.71,119.64,11.52763221]
[1744236033927,0.06358748,119.68,119.65,0.05712217]
[1744236034233,8.36,119.65,119.64,1.12945438]
[1744236034430,42.49170249,119.67,119.63,35.00401239]
[1744236034633,40.3356,119.68,119.63,35.00401239]
[1744236035137,40.3356,119.68,119.57,42.49170249]
[1744236035138,8.3597,119.66,119.57,42.49170249]
[1744236035631,0.05349778,119.63,119.6,0.05917833]
[1744236040531,0.05349778,119.63,119.6,38.87917833]
[1744236041231,2.1438,119.69,119.6,38.87917833]
[1744236041431,2.1438,119.69,119.6,38.82]
[1744236041624,8.3586,119.67,119.6,38.82]
[1744236041930,8.3586,119.67,119.58,42.49170249]
[1744236042138,8.3616,119.63,119.56,2.1216]
[1744236042334,8.41985813,119.63,119.61,0.05601702]
[1744236042632,50.85310249,119.63,119.61,0.06291545]
[1744236042838,81.38691092,119.63,119.53,42.46815367]
[1744236043140,8.3632,119.61,119.53,41.013]
[1744236043437,81.33170249,119.63,119.53,83.50470249]
[1744236043632,38.84,119.63,119.54,62.0]
[1744236044034,0.0607513,119.6,119.57,0.06257849]
[1744236044236,0.0607513,119.6,119.57,38.90257849]
[1744236046132,2.1438,119.69,119.58,84.98340498]
[1744236046338,2.1438,119.69,119.61,42.49170249]
[1744236046538,2.1438,119.69,119.62,38.84]
[1744236047141,0.06252299,119.67,119.64,0.0619951]
[1744236049344,8.3596,119.66,119.64,0.0619951]
[1744236049538,0.06252299,119.67,119.64,0.0619951]
[1744236049948,8.3593,119.66,119.64,0.0619951]
[1744236050143,0.06252299,119.67,119.64,0.0619951]
[1744236051247,8.3597,119.66,119.64,0.0619951]
[1744236051448,42.55422548,119.67,119.64,0.0619951]
[1744236051646,2.1666,119.66,119.64,0.0619951]
[1744236052240,8.36,119.65,119.64,0.0619951]
[1744236052547,8.36,119.65,119.57,62.0]
[1744236053045,10.5262,119.66,119.57,62.0]
[1744236053546,0.06136331,119.63,119.6,0.06233197]
[1744236054244,42.49170249,119.62,119.53,38.84]
[1744236054450,42.49170249,119.57,119.5,38.84]
[1744236054645,8.3671,119.55,119.5,38.84]
[1744236054952,42.49170249,119.56,119.47,38.84]
[1744236055148,2.1786,119.54,119.47,38.84]
[1744236055346,38.90108905,119.53,119.5,0.05337121]
[1744236055648,0.06108905,119.53,119.5,0.05337121]
[1744236057054,0.06108905,119.53,119.51,62.0]
[1744236057351,42.56019452,119.61,119.52,38.84]
[1744236057552,2.1562,119.61,119.52,81.40019452]
[1744236058347,10.5195,119.61,119.52,81.40019452]
[1744236058552,0.05415154,119.58,119.55,0.05941211]
[1744236058956,38.89415154,119.58,119.55,0.05941211]
[1744236059459,41.12005154,119.58,119.55,0.05941211]
[1744236059755,8.3656,119.57,119.55,0.05941211]
[1744236060049,41.12005154,119.58,119.55,0.05941211]
[1744236060256,49.48525154,119.58,119.55,0.05941211]
[1744236060957,41.12005154,119.58,119.55,0.05941211]
[1744236061561,8.366,119.57,119.55,0.05941211]
[1744236061764,41.12005154,119.58,119.55,0.05941211]
[1744236061955,0.05415154,119.58,119.55,0.05941211]
[1744236065059,0.05415154,119.58,119.55,4.50781211]
[1744236065558,0.05415154,119.58,119.56,62.0]
[1744236068564,0.05415154,119.58,119.55,4.50781211]
[1744236068864,0.05415154,119.58,119.55,0.05941211]
[1744236071265,0.05415154,119.58,119.55,38.37941211]
[1744236071466,0.05415154,119.58,119.56,62.0]
[1744236071864,42.56019452,119.67,119.56,104.56019452]
[1744236072164,10.6612,119.65,119.56,62.0]
[1744236072760,44.86079452,119.65,119.56,62.0]
[1744236073067,0.05856148,119.62,119.59,0.05289412]
[1744236073266,8.3631,119.61,119.59,0.05289412]
[1744236073866,8.42106148,119.62,119.59,0.05289412]
[1744236074068,0.05856148,119.62,119.59,0.05289412]
[1744236075168,0.05856148,119.62,119.59,38.37289412]
[1744236075964,0.05856148,119.62,119.59,100.37289412]
[1744236076166,0.05856148,119.62,119.59,0.05289412]
[1744236076665,8.3635,119.6,119.59,0.05289412]
[1744236077261,8.3632,119.61,119.59,0.05289412]
[1744236077465,42.56019452,119.61,119.53,38.32]
[1744236077666,8.3624,119.62,119.53,38.32]
[1744236077866,80.88019452,119.63,119.53,38.32]
[1744236078780,0.05377411,119.59,119.57,0.06358909]
[1744236079073,8.361,119.64,119.58,62.0]
[1744236079477,0.059776,119.62,119.6,0.05954885]
[1744236080577,2.2327,119.67,119.61,38.32]
[1744236080768,38.32,119.69,119.61,38.32]
[1744236081074,8.3579,119.68,119.61,38.32]
[1744236081265,4.4149,119.71,119.61,38.32]
[1744236081466,8.3596,119.66,119.61,38.32]
[1744236081661,4.4149,119.71,119.61,38.32]
[1744236081869,0.05573149,119.65,119.62,0.05901192]
[1744236082067,0.05573149,119.65,119.61,38.32]
[1744236082267,8.3611,119.64,119.62,0.0636795]
[1744236082568,0.05573149,119.65,119.62,0.0636795]
[1744236082771,8.3611,119.64,119.62,0.0636795]
[1744236083077,42.61592601,119.65,119.62,0.0636795]
[1744236083280,8.3631,119.61,119.55,38.32]
[1744236083472,38.32,119.63,119.56,62.0]
[1744236084274,0.06374412,119.61,119.58,0.05298066]
[1744236088877,0.06374412,119.61,119.59,38.32]
[1744236091880,0.06374412,119.61,119.58,0.05298066]
[1744236096371,8.42654412,119.61,119.58,0.05298066]
[1744236096576,0.06374412,119.61,119.58,0.05298066]
[1744236097582,0.06374412,119.61,119.6,8.3635]
[1744236097784,0.06374412,119.61,119.6,45.9235]
[1744236098076,0.06374412,119.61,119.6,107.9235]
[1744236098278,4.412e-05,119.61,119.6,107.9235]
[1744236098475,2.1812,119.69,119.6,134.09100623]
[1744236098676,4.5773,119.71,119.62,26.17100623]
[1744236098978,4.5773,119.71,119.68,8.3574]
[1744236099177,4.5773,119.71,119.63,16.7226]
[1744236099377,4.5773,119.71,119.66,8.359]
[1744236099577,0.06126944,119.68,119.66,8.41301657]
[1744236099982,0.06126944,119.68,119.67,8.3586]
[1744236100280,0.06126944,119.68,119.66,0.05401657]
[1744236100483,0.06126944,119.68,119.67,8.3586]
[1744236103190,6.944e-05,119.68,119.67,8.3586]
[1744236103880,639.5,119.78,119.74,8.3531]
[1744236104385,37.54,119.78,119.69,37.54]
[1744236104880,8.3525,119.76,119.69,37.54]
[1744236105080,37.54,119.78,119.72,0.0584083]
[1744236105081,0.06232494,119.75,119.72,0.0584083]
[1744236105486,0.06232494,119.75,119.74,8.3534]
[1744236105888,0.06232494,119.75,119.72,0.0584083]
[1744236106681,8.3544,119.73,119.72,0.0584083]
[1744236114591,0.06232494,119.75,119.72,0.0584083]
[1744236114790,0.06232494,119.75,119.73,37.52]
[1744236114996,0.06232494,119.75,119.74,8.3537]
[1744236115796,2.494e-05,119.75,119.74,8.3537]
[1744236116888,2.494e-05,119.75,119.74,16.7137]
[1744236117091,2.494e-05,119.75,119.74,54.2337]
[1744236117293,2.494e-05,119.75,119.74,45.8737]
[1744236122099,63.69100623,119.87,119.75,25.09]
[1744236122403,8.3451,119.87,119.77,26.17100623]
[1744236122604,6.4971,119.88,119.85,8.3457]
[1744236122804,6.4971,119.88,119.82,37.52]
[1744236123304,0.05324608,119.86,119.84,8.40405681]
[1744236123504,0.05324608,119.86,119.84,0.05765681]
[1744236123799,355.5126,119.92,119.84,0.05765681]
[1744236123800,28.28080623,119.92,119.84,0.05765681]
[1744236124097,355.5126,119.96,119.85,627.29100623]
[1744236124307,2.2204,119.96,119.86,37.5]
[1744236124504,34.36264468,119.97,119.87,26.17100623]
[1744236124698,34.36264468,119.97,119.88,2.1564]
[1744236124898,0.06093143,119.93,119.91,0.06194953]
[1744236125601,8.3412,119.92,119.91,0.06194953]
[1744236125811,74.34923766,119.93,119.84,37.5]
[1744236126102,26.17100623,119.91,119.81,39.6124]
[1744236126503,8.343,119.9,119.86,8.3453]
[1744236126904,0.0614908,119.89,119.87,0.05734325]
[1744236127108,0.0614908,119.89,119.81,39.6124]
[1744236127309,26.17100623,119.92,119.87,0.05698224]
[1744236127506,0.06059334,119.86,119.82,37.38]
[1744236127709,8.3435,119.89,119.82,37.38]
[1744236127911,0.05351426,119.85,119.83,0.06348442]
[1744236128111,39.7773,119.93,119.82,63.55100623]
[1744236128313,12.7547,119.94,119.86,26.17100623]
[1744236128613,12.7547,119.94,119.87,37.38]
[1744236128816,8.3405,119.93,119.87,37.38]
[1744236129105,26.17100623,119.92,119.84,37.38]
[1744236129311,8.3426,119.9,119.89,0.0544577]
[1744236130117,8.39563636,119.91,119.89,0.0544577]
[1744236130318,0.05363636,119.91,119.89,0.0544577]
[1744236133922,0.05363636,119.91,119.84,37.38]
[1744236134223,0.05363636,119.91,119.8,3.60776065]
[1744236134224,26.17100623,119.88,119.81,37.38]
[1744236134520,26.17100623,119.86,119.77,38.83190563]
[1744236134725,8.3478,119.83,119.77,37.38]
[1744236134914,26.17100623,119.86,119.77,37.38]
[1744236135117,8.40259591,119.83,119.8,0.05927646]
[1744236135415,0.05479591,119.83,119.8,0.05927646]
[1744236135614,8.3497,119.8,119.77,37.38]
[1744236135818,79.77051714,119.84,119.74,37.38]
[1744236136323,42.39051714,119.8,119.71,115.56386777]
[1744236136521,2.2,119.79,119.71,113.27496777]
[1744236136821,0.05368757,119.77,119.74,0.06217572]
[1744236137325,8.3533,119.75,119.74,0.06217572]
[1744236138225,8.3533,119.75,119.71,11.57896777]
[1744236138525,45.7327,119.76,119.71,11.57896777]
[1744236138719,37.38,119.76,119.68,39.5474]
[1744236139327,8.3531,119.75,119.68,39.5474]
[1744236139518,0.062079,119.73,119.71,0.06340869]
[1744236142224,8.3578,119.69,119.62,4.5184]
[1744236142419,0.062079,119.73,119.65,42.39051714]
[1744236142622,643.43051714,119.76,119.66,37.4]
[1744236142923,42.39051714,119.72,119.63,37.4]
[1744236143122,2.2541,119.71,119.63,37.4]
[1744236143319,0.05803694,119.69,119.66,0.05668416]
[1744236143724,8.3584,119.68,119.66,0.05668416]
[1744236144024,42.39051714,119.68,119.6,37.4]
[1744236144522,2.3183,119.7,119.6,79.79051714]
[1744236144923,8.3577,119.69,119.6,37.4]
[1744236145226,2.3183,119.7,119.61,62.0]
[1744236145531,0.06074006,119.66,119.63,0.05686023]
[1744236147225,42.4512572,119.66,119.63,0.05686023]
[1744236147427,42.39051714,119.64,119.57,37.42]
[1744236147731,2.3009,119.65,119.56,42.39051714]
[1744236147930,2.3009,119.65,119.57,37.42]
[1744236148432,0.06299262,119.62,119.6,0.06412892]
[1744236149734,8.42549262,119.62,119.6,0.06412892]
[1744236150233,0.06299262,119.62,119.6,0.06412892]
[1744236150630,79.87350976,119.62,119.6,0.06412892]
[1744236150929,79.87350976,119.62,119.54,638.46]
[1744236151131,79.81051714,119.62,119.54,638.46]
[1744236151430,42.39051714,119.6,119.5,42.39051714]
[1744236151632,355.5126,119.61,119.5,49.06711714]
[1744236151826,0.06022723,119.57,119.54,0.06189237]
[1744236153535,0.06022723,119.57,119.55,62.0]
[1744236153732,37.50022723,119.57,119.39,118.43403306]
[1744236153936,42.39051714,119.56,119.47,37.44]
[1744236154131,42.39051714,119.54,119.47,37.44]
[1744236154337,42.39051714,119.56,119.47,37.44]
[1744236154536,37.44,119.57,119.47,37.44]
[1744236155039,0.06384235,119.53,119.51,0.02001712]
[1744236155234,0.06384235,119.53,119.51,37.46001712]
[1744236156038,0.06384235,119.53,119.51,0.02001712]
[1744236156240,8.43264235,119.53,119.51,0.02001712]
[1744236156445,0.06384235,119.53,119.51,0.02001712]
[1744236156937,42.44734235,119.53,119.45,99.88]
[1744236157139,4.5035,119.53,119.45,99.88]
[1744236157347,26.19786308,119.5,119.45,62.0]
[1744236157737,28.42956308,119.52,119.45,62.0]
[1744236158039,0.06185573,119.5,119.45,99.88]
[1744236159232,0.06185573,119.5,119.42,37.88]
[1744236159430,8.3722,119.48,119.42,37.88]
[1744236159630,0.05975381,119.47,119.42,37.88]
[1744236160745,0.05975381,119.47,119.43,28.38616308]
[1744236161044,4.5035,119.53,119.45,26.19786308]
[1744236161340,355.5126,119.56,119.46,37.88]
[1744236161546,363.879,119.56,119.46,37.88]
[1744236161734,26.19786308,119.62,119.51,26.19786308]
[1744236162039,362.048,119.63,119.53,26.19786308]
[1744236162239,0.05933449,119.58,119.55,0.05714226]
[1744236162440,0.05933449,119.58,119.56,37.88]
[1744236162940,0.05933449,119.58,119.55,0.05975381]
[1744236163336,26.25719757,119.58,119.54,62.0]
[1744236163533,2.2028,119.57,119.49,37.88]
[1744236163843,26.19786308,119.56,119.44,634.86716308]
[1744236164038,26.19786308,119.54,119.45,37.88]
[1744236164238,37.88,119.55,119.46,26.19786308]
[1744236164438,26.19786308,119.54,119.45,37.88]
[1744236164637,0.06190161,119.52,119.45,37.88]
[1744236165740,0.06190161,119.52,119.45,64.07786308]
[1744236165945,0.06190161,119.52,119.47,26.19786308]
[1744236166441,0.06190161,119.52,119.48,62.0]
[1744236166643,0.06190161,119.52,119.49,37.9]
[1744236167345,2.2028,119.57,119.49,64.09786308]
[1744236167846,2.2028,119.57,119.49,37.9]
[1744236168146,28.40066308,119.57,119.45,26.19786308]
[1744236168337,26.19786308,119.55,119.46,37.9]
[1744236168542,0.06313356,119.52,119.5,0.05668326]
[1744236168841,4.3668,119.57,119.51,37.9]
[1744236169043,0.05655484,119.52,119.51,37.9]
[1744236169247,12.7326,119.57,119.53,0.0546886]
[1744236169441,68.46466308,119.57,119.44,636.32310819]
[1744236169650,0.05934922,119.56,119.46,37.9]
[1744236169843,68.46466308,119.57,119.46,37.9]
[1744236170037,68.46466308,119.57,119.47,62.0]
[1744236170639,0.06223018,119.53,119.47,62.0]
[1744236170851,37.96223018,119.53,119.46,37.9]
[1744236171447,0.06223018,119.53,119.46,37.9]
[1744236171648,0.06223018,119.53,119.46,64.09786308]
[1744236172444,0.06223018,119.53,119.47,37.9]
[1744236173747,0.06223018,119.53,119.47,62.0]
[1744236173946,8.43093018,119.53,119.47,62.0]
[1744236174141,0.06223018,119.53,119.47,62.0]
[1744236177652,0.06223018,119.53,119.48,26.19786308]
[1744236177853,0.06223018,119.53,119.49,37.9]
[1744236178048,0.06223018,119.53,119.47,62.0]
[1744236179239,8.43063018,119.53,119.47,62.0]
[1744236179451,0.06223018,119.53,119.47,62.0]
[1744236179753,8.43073018,119.53,119.47,62.0]
[1744236179945,0.06223018,119.53,119.47,62.0]
[1744236181952,0.06223018,119.53,119.48,26.19786308]
[1744236183354,37.9,119.58,119.48,26.19786308]
[1744236183549,46.2652,119.58,119.48,26.19786308]
[1744236183746,37.9,119.58,119.48,26.19786308]
[1744236184053,46.2649,119.58,119.48,26.19786308]
[1744236184353,46.2649,119.58,119.52,0.05337272]
[1744236184553,0.06165662,119.54,119.52,37.95337272]
[1744236184857,37.9,119.61,119.52,37.95337272]
[1744236185157,37.9,119.61,119.53,4.3789]
[1744236185346,4.4263,119.62,119.53,4.3789]
[1744236185347,2.2222,119.63,119.53,4.3789]
[1744236185651,2.2222,119.63,119.53,2.1363]
[1744236185854,8.3655,119.58,119.52,37.9]
[1744236186152,0.05315556,119.59,119.57,0.06268302]
[1744236186353,8.3655,119.58,119.52,37.9]
[1744236186555,0.05993751,119.59,119.52,37.9]
[1744236186754,0.05724565,119.56,119.54,0.05306468]
[1744236188454,0.05724565,119.56,119.54,62.05306468]
[1744236188756,0.05724565,119.56,119.54,0.05306468]
[1744236191854,0.05724565,119.56,119.54,62.05306468]
[1744236193060,0.05724565,119.56,119.54,0.05306468]
[1744236193359,37.84,119.55,119.48,37.84]
[1744236193553,37.84,119.55,119.48,40.0918]
[1744236194360,0.05901554,119.53,119.5,0.05505631]
[1744236194557,0.05901554,119.53,119.48,40.0918]
[1744236194759,0.05901554,119.53,119.5,0.05726957]
[1744236195058,4.3603,119.58,119.5,0.05726957]
[1744236195260,357.6782,119.62,119.51,628.45786308]
[1744236195461,10.5281,119.62,119.52,37.84]
[1744236195656,10.5281,119.62,119.53,2.2406]
[1744236195858,2.1656,119.62,119.53,2.2406]
[1744236196062,2.1656,119.62,119.54,62.0]
[1744236196262,0.05890242,119.59,119.56,0.05429339]
[1744236196459,0.05890242,119.59,119.57,37.84]
[1744236196964,395.5182,119.66,119.57,37.84]
[1744236197162,40.0056,119.66,119.57,37.84]
[1744236198159,0.06399407,119.63,119.6,0.05607748]
[1744236199575,0.06399407,119.63,119.61,62.0]
[1744236199776,0.06399407,119.63,119.61,99.84]
[1744236200070,4.3394,119.69,119.61,99.84]
[1744236200273,2.1052,119.69,119.61,130.47826308]
[1744236200672,2.1052,119.69,119.61,104.2804]
[1744236200874,8.359,119.67,119.61,104.2804]
[1744236201271,0.05645498,119.65,119.63,0.05704013]
[1744236202074,8.41675498,119.65,119.63,0.05704013]
[1744236202276,0.05645498,119.65,119.63,0.05704013]
[1744236202676,26.19786308,119.64,119.53,602.14]
[1744236202881,26.19786308,119.64,119.54,37.82]
[1744236203272,34.55866308,119.64,119.54,37.82]
[1744236203774,34.55866308,119.64,119.58,0.05800103]
[1744236203981,0.06283959,119.6,119.58,0.05800103]
[1744236204272,66.32026308,119.66,119.57,37.82]
[1744236204478,8.3611,119.64,119.58,62.0615731]
[1744236204678,0.05434107,119.63,119.58,62.0]
[1744236204976,0.05434107,119.63,119.6,0.05630372]
[1744236205475,2.1052,119.69,119.61,37.82]
[1744236206270,8.3568,119.7,119.61,37.82]
[1744236206471,0.06234136,119.68,119.65,0.0598697]
[1744236208371,0.06234136,119.68,119.65,62.0598697]
[1744236209378,0.06234136,119.68,119.65,99.8798697]
[1744236209577,355.5126,119.75,119.65,99.8798697]
[1744236209578,72.18264468,119.76,119.65,126.07773278]
[1744236209775,78.73474468,119.76,119.66,2.2432]
[1744236210473,26.19786308,119.75,119.66,2.2432]
[1744236210683,0.05272286,119.72,119.69,0.05969132]
[1744236211274,8.40822286,119.72,119.69,0.05969132]
[1744236211773,8.3565,119.7,119.69,0.05969132]
[1744236212479,8.3577,119.69,119.65,37.82]
[1744236212672,64.01786308,119.72,119.65,37.82]
[1744236213081,8.3576,119.69,119.65,37.82]
[1744236213581,419.53046308,119.72,119.65,37.82]
[1744236213879,26.26007854,119.68,119.58,40.1215]
[1744236214075,26.19786308,119.7,119.58,37.8]
[1744236214076,26.19786308,119.66,119.58,37.8]
[1744236214581,42.209,119.67,119.58,37.8]
[1744236214777,26.19786308,119.65,119.58,99.8]
[1744236214982,0.05656286,119.64,119.61,0.0581079]
[1744236216384,26.25442594,119.64,119.61,0.0581079]
[1744236216575,8.3621,119.62,119.61,0.0581079]
[1744236217387,37.8,119.63,119.55,639.54]
[1744236217885,2.1316,119.62,119.55,639.54]
[1744236218084,8.3639,119.6,119.55,639.54]
[1744236218285,2.1316,119.62,119.52,37.8]
[1744236218286,26.19786308,119.61,119.52,37.8]
[1744236218586,8.3655,119.58,119.56,0.05571483]
[1744236218787,37.8,119.58,119.56,0.05571483]
[1744236219086,8.3656,119.57,119.56,0.05571483]
[1744236219483,37.8,119.58,119.56,0.05571483]
[1744236219783,46.1653,119.58,119.56,0.05571483]
[1744236219983,37.8,119.58,119.56,0.05571483]
[1744236220884,0.05612123,119.59,119.56,0.05571483]
[1744236221086,26.25398431,119.59,119.56,0.05571483]
[1744236221487,8.3664,119.56,119.5,62.0]
[1744236221683,37.8,119.57,119.5,62.0]
[1744236221985,46.166,119.57,119.5,62.0]
[1744236222783,0.06191046,119.55,119.52,0.06393008]
[1744236228583,37.82,119.63,119.53,26.19786308]
[1744236228785,37.82,119.63,119.54,4.5174]
[1744236229088,37.82,119.63,119.55,37.82]
[1744236229588,0.05923686,119.6,119.57,0.05300251]
[1744236232585,0.05923686,119.6,119.57,26.25086559]
[1744236233088,48.442,119.66,119.57,26.25086559]